bitfinex-derivatives/quotes_ETHF0:USTF0_20210403
["timestamp","ask_amount","ask_price","bid_price","bid_amount"]
[1617444773758,4.79085,2103.2,2103.1,9.35962301]
[1617444776566,4.79085,2103.2,2103.1,0.1396795]
[1617444778768,4.79085,2103.2,2103.0,0.13969063]
[1617444780469,4.79085,2103.2,2102.9,0.13970413]
[1617444780670,4.79085,2103.2,2103.1,8.1388145]
[1617444781174,4.79085,2103.2,2103.1,0.13971061]
[1617444781571,4.79085,2103.2,2103.1,8.27492536]
[1617444781770,4.79085,2103.2,2103.1,8.13521475]
[1617444782172,4.79085,2103.2,2103.1,0.13972053]
[1617444782774,4.79085,2103.2,2103.0,8.13775292]
[1617444783072,4.79085,2103.2,2102.9,8.13919346]
[1617444783273,4.79085,2103.2,2103.0,8.13911951]
[1617444783472,4.79085,2103.2,2103.0,8.27884093]
[1617444783672,4.79085,2103.2,2103.1,0.13972262]
[1617444790378,4.79085,2103.2,2102.8,8.13101256]
[1617444790878,2.90695,2103.2,2102.9,0.13970737]
[1617444791079,2.90695,2103.2,2103.0,8.12427086]
[1617444791480,2.90695,2103.2,2103.1,8.1227766]
[1617444791681,2.90695,2103.2,2103.1,8.26247173]
[1617444793881,2.90695,2103.2,2103.1,0.13969513]
[1617444795482,2.90695,2103.2,2103.1,2.90695]
[1617444795682,2.90695,2103.2,2103.1,3.04663371]
[1617444796582,2.90695,2103.2,2103.1,4.93893371]
[1617444796783,2.90695,2103.2,2103.1,14.13151196]
[1617444797382,2.90695,2103.3,2103.1,14.13151196]
[1617444797584,77.349,2104.9,2103.1,14.13151196]
[1617444797784,77.349,2104.9,2103.2,9.34385344]
[1617444798085,14.1019,2104.6,2104.5,5.95531546]
[1617444798488,77.349,2104.9,2104.5,5.95531546]
[1617444798885,77.349,2104.9,2104.7,4.87267815]
[1617444799586,2.90695,2104.8,2104.7,4.87267815]
[1617444800792,2.90695,2104.8,2104.5,5.95531546]
[1617444801291,2.90695,2104.8,2104.6,5.95468204]
[1617444802595,2.90695,2104.8,2104.7,5.94986155]
[1617444802996,2.90695,2104.8,2104.7,8.20416155]
[1617444803397,2.90695,2104.8,2104.7,2.2543]
[1617444803598,2.90695,2104.8,2104.7,5.16125]
[1617444803798,2.90695,2104.8,2104.7,12.18440749]
[1617444805199,2.90695,2104.8,2104.7,9.27745749]
[1617444805400,2.90695,2104.8,2104.6,7.02117777]
[1617444808600,2.90695,2104.8,2104.5,7.02187727]
[1617444808802,2.90695,2104.8,2104.4,7.02308329]
[1617444809500,2.90695,2104.5,2104.4,7.02308329]
[1617444811509,2.90695,2104.5,2104.4,9.93003329]
[1617444811712,2.90695,2104.5,2104.4,2.90695]
[1617444812712,2.90695,2104.5,2104.2,7.01412199]
[1617444813212,2.90695,2104.5,2104.3,7.01322171]
[1617444814212,2.90695,2104.5,2104.2,7.00640631]
[1617444814815,2.90695,2104.5,2103.7,8.09359457]
[1617444815414,2.90695,2104.5,2103.8,0.13962437]
[1617444815615,2.2846,2104.8,2103.9,2.90695]
[1617444816014,2.2846,2104.8,2104.7,4.85513164]
[1617444816315,2.2846,2104.8,2104.6,4.85526264]
[1617444816613,2.2846,2104.8,2104.7,4.85519873]
[1617444817014,2.2846,2104.8,2104.6,4.85542905]
[1617444817516,2.90695,2104.7,2104.6,4.85542905]
[1617444821918,2.90695,2104.7,2104.6,1.23202905]
[1617444822219,2.90695,2104.7,2103.2,8.10188581]
[1617444822722,2.90695,2104.7,2102.8,8.1103309]
[1617444823219,2.90695,2104.7,2102.9,0.13967685]
[1617444823620,2.90695,2103.0,2102.8,0.13968565]
[1617444823820,4.57885,2103.0,2102.8,0.13968565]
[1617444824722,4.57885,2103.0,2102.7,0.13969087]
[1617444824922,4.57885,2103.0,2102.9,0.13969045]
[1617444825324,4.57885,2103.0,2102.7,0.13969129]
[1617444825625,4.57885,2103.0,2102.6,8.10595662]
[1617444825626,4.57885,2103.0,2102.9,0.13969094]
[1617444825825,4.57885,2103.0,2102.6,8.10595662]
[1617444825826,4.57885,2103.0,2102.8,0.13969174]
[1617444826324,4.57885,2103.0,2102.7,0.13969298]
[1617444826524,4.57885,2103.0,2102.9,0.13969289]
[1617444826725,4.57885,2103.0,2102.8,0.13969165]
[1617444827123,4.57885,2103.0,2102.6,8.2459985]
[1617444827624,2.2815,2103.5,2102.7,3.04663735]
[1617444827826,2.2815,2103.5,2102.7,11.15092436]
[1617444828126,2.2815,2103.5,2102.8,0.13968234]
[1617444828426,2.2815,2103.5,2103.1,7.02331698]
[1617444828727,73.8527,2104.8,2103.2,7.02262167]
[1617444829627,2.90695,2103.3,2103.2,7.02262167]
[1617444830728,2.90695,2103.3,2102.8,8.103025]
[1617444831329,2.90695,2103.3,2102.9,0.13967787]
[1617444831629,2.90695,2103.0,2102.9,0.13967787]
[1617444833030,2.90695,2103.0,2102.9,8.25307191]
[1617444833430,2.90695,2103.0,2102.9,0.13967787]
[1617444834430,2.90695,2103.0,2102.9,8.25355009]
[1617444836733,27.5867,2104.7,2102.9,8.25355009]
[1617444837332,27.5867,2104.7,2104.0,4.87054104]
[1617444837333,13.9463,2104.7,2104.0,4.87054104]
[1617444837734,2.90695,2104.1,2104.0,4.87054104]
[1617444841037,2.90695,2104.1,2103.9,5.95165394]
[1617444842438,2.90695,2104.1,2103.8,5.95384957]
[1617444842740,2.90695,2104.1,2104.0,4.87315531]
[1617444843040,2.90695,2104.1,2103.9,5.95606878]
[1617444844544,2.90695,2104.1,2104.0,4.87206678]
[1617444845144,2.90695,2104.1,2103.8,5.95474829]
[1617444845544,2.90695,2104.1,2104.0,4.87204442]
[1617444845747,2.90695,2104.1,2103.9,5.95772925]
[1617444846944,2.90695,2104.1,2103.4,7.04135223]
[1617444846945,2.90695,2104.1,2104.0,4.87541212]
[1617444849249,2.90695,2104.1,2103.9,4.87006491]
[1617444849952,2.90695,2104.1,2104.0,4.87198735]
[1617444851055,2.90695,2104.1,2103.9,4.87480783]
[1617444852055,2.90695,2104.1,2103.8,4.87683684]
[1617444854057,2.90695,2104.1,2103.9,4.87632548]
[1617444854362,2.90695,2104.1,2104.0,4.87421629]
[1617444854759,2.90695,2104.1,2103.9,7.54824342]
[1617444855164,2.90695,2104.1,2104.0,5.95430126]
[1617444855560,2.90695,2104.1,2103.9,5.95173059]
[1617444855759,2.90695,2104.1,2104.0,5.95307099]
[1617444856161,2.90695,2104.1,2103.9,5.95247104]
[1617444861466,2.90695,2104.1,2104.0,4.87212845]
[1617444866272,2.90695,2104.1,2103.9,5.95681233]
[1617444868875,2.90695,2104.1,2104.0,5.95566946]
[1617444872880,2.90695,2104.1,2104.0,6.09533212]
[1617444874283,2.90695,2104.1,2104.0,5.95566946]
[1617444876787,2.90695,2104.1,2103.9,5.9573163]
[1617444877388,2.90695,2104.1,2104.0,5.95954274]
[1617444878090,2.90695,2104.1,2103.9,5.95921753]
[1617444879997,2.90695,2104.1,2103.6,7.04640723]
[1617444880297,2.90695,2103.7,2103.6,7.04640723]
[1617444880998,2.90695,2103.7,2103.6,7.18608236]
[1617444883600,2.90695,2103.7,2103.6,0.13967513]
[1617444886298,2.90695,2103.7,2103.5,0.13968598]
[1617444886500,2.90695,2103.7,2103.6,0.1396879]
[1617444886999,2.90695,2103.7,2103.5,0.13968802]
[1617444887199,2.90695,2103.7,2103.6,0.13968849]
[1617444887699,2.90695,2103.7,2103.5,0.13968804]
[1617444887900,2.90695,2103.7,2103.3,7.0484482]
[1617444888200,2.90695,2103.7,2103.4,7.18687125]
[1617444888400,2.90695,2103.7,2103.5,7.04585009]
[1617444888700,2.90695,2103.7,2103.5,7.18552507]
[1617444888900,2.90695,2103.7,2103.6,0.13967273]
[1617444889402,2.90695,2103.7,2103.5,0.13967305]
[1617444890299,2.90695,2103.7,2103.5,3.04662305]
[1617444890700,2.90695,2103.7,2103.6,0.13967169]
[1617444894407,2.90695,2103.7,2103.4,0.13966855]
[1617444895607,2.90695,2103.7,2103.5,0.13966899]
[1617444896107,2.90695,2103.7,2103.4,0.1396693]
[1617444896407,2.90695,2103.7,2103.6,0.1396699]
[1617444896908,2.90695,2103.7,2103.5,0.13967129]
[1617444897210,2.90695,2103.7,2103.6,0.13967124]
[1617444897608,2.90695,2103.7,2103.4,0.13967811]
[1617444898108,2.90695,2103.7,2103.5,7.04970182]
[1617444898611,2.90695,2103.7,2103.6,0.13968476]
[1617444899712,2.90695,2103.7,2103.6,7.1874423]
[1617444901416,2.90695,2103.7,2103.6,9.3208423]
[1617444901917,2.90695,2103.7,2103.6,2.27308476]
[1617444902417,2.90695,2103.7,2103.6,0.13968476]
[1617444902717,2.90695,2103.7,2103.6,8.28056066]
[1617444904919,2.90695,2103.7,2103.6,9.91096066]
[1617444910223,2.90695,2103.7,2103.6,1.77008476]
[1617444911223,2.90695,2103.7,2103.6,8.27414621]
[1617444913528,2.90695,2103.7,2103.6,0.13968476]
[1617444914130,2.90695,2103.7,2103.5,0.13966352]
[1617444915134,2.90695,2103.7,2103.3,0.13966977]
[1617444915334,2.90695,2103.7,2103.6,8.14461735]
[1617444915734,2.90695,2103.7,2103.6,0.13967494]
[1617444917138,2.90695,2103.7,2103.6,8.28401008]
[1617444922344,2.90695,2103.7,2103.6,0.13967494]
[1617444922744,2.90695,2103.7,2103.4,0.13967321]
[1617444923944,2.90695,2103.7,2103.3,0.1396738]
[1617444924546,16.1421,2104.8,2103.6,8.14761152]
[1617444924748,2.339,2104.8,2103.6,8.14761152]
[1617444924946,2.339,2104.8,2104.7,4.88929817]
[1617444925146,0.947,2104.9,2104.7,4.88929817]
[1617444925347,14.0,2105.4,2104.7,4.88929817]
[1617444925847,14.0,2105.4,2104.7,3.45659817]
[1617444926547,2.90695,2104.8,2104.7,3.45659817]
[1617444926747,3.86095,2104.8,2104.7,3.45659817]
[1617444928548,3.86095,2104.8,2104.6,5.97657244]
[1617444929348,2.90695,2104.8,2104.6,5.97657244]
[1617444929649,2.90695,2104.8,2104.7,5.97480855]
[1617444930250,2.90695,2104.8,2104.6,8.8427386]
[1617444930751,2.90695,2104.8,2104.6,1.7881]
[1617444930952,2.90695,2104.8,2104.7,0.13963111]
[1617444934956,2.90695,2104.8,2104.6,8.12989092]
[1617444935158,2.90695,2104.8,2104.4,7.02880509]
[1617444936558,14.0,2105.4,2104.5,0.1396233]
[1617444936757,14.0,2105.4,2104.5,1.8971233]
[1617444936957,14.0,2105.4,2105.0,4.86300974]
[1617444938763,2.90695,2105.1,2104.8,7.53107857]
[1617444939465,2.90695,2105.1,2104.9,5.94519997]
[1617444940168,2.90695,2105.1,2105.0,5.94358971]
[1617444941278,2.90695,2105.1,2104.8,1.5874]
[1617444942169,2.90695,2105.1,2104.7,7.02209477]
[1617444942368,2.90695,2105.1,2105.0,5.94321669]
[1617444942569,2.90695,2105.1,2104.9,5.94469207]
[1617444943972,2.90695,2105.1,2105.0,4.86495692]
[1617444945471,2.90695,2105.1,2104.9,4.86178909]
[1617444945971,2.90695,2105.1,2104.8,4.8595107]
[1617444947373,2.90695,2105.1,2104.9,4.85941119]
[1617444948173,3.85455,2105.1,2104.9,4.85941119]
[1617444948374,2.90695,2105.1,2104.9,4.85941119]
[1617444950284,2.90695,2105.1,2104.9,6.71721119]
[1617444950682,2.90695,2105.1,2105.0,4.85726091]
[1617444951393,2.90695,2105.1,2104.9,6.71534683]
[1617444952783,2.90695,2105.1,2105.0,4.85780554]
[1617444953483,2.90695,2105.1,2104.9,4.85825849]
[1617444953683,2.90695,2105.1,2104.7,5.93787148]
[1617444953884,2.90695,2105.1,2104.9,4.85860293]
[1617444955383,2.90695,2105.1,2105.0,4.85794645]
[1617444956384,2.90695,2105.1,2104.9,4.85668996]
[1617444956790,2.90695,2105.1,2104.8,4.85449489]
[1617444958387,4.98235,2105.1,2104.8,4.85449489]
[1617444958588,4.98235,2105.1,2104.7,4.85537753]
[1617444958790,2.90695,2104.8,2104.7,4.85537753]
[1617444959289,2.90695,2104.8,2104.6,4.85796126]
[1617444960089,2.90695,2104.8,2104.5,4.85954601]
[1617444960389,2.90695,2104.8,2103.8,2.90695]
[1617444960390,2.90695,2104.8,2104.4,4.86121544]
[1617444960588,2.90695,2104.8,2104.3,4.86196554]
[1617444960789,2.90695,2104.4,2104.3,4.86196554]
[1617444960989,5.34295,2104.4,2104.3,4.86196554]
[1617444961894,5.34295,2104.4,2104.2,4.86315044]
[1617444963192,5.34295,2104.4,2104.1,4.86573022]
[1617444963692,5.34295,2104.4,2104.0,4.86701332]
[1617444964795,2.90695,2104.1,2104.0,4.86701332]
[1617444965795,2.90695,2104.1,2103.4,9.93607009]
[1617444965796,2.90695,2104.1,2103.9,5.95131365]
[1617444966598,2.90695,2104.1,2104.0,5.94926313]
[1617444967898,2.90695,2104.1,2103.9,5.9483357]
[1617444968099,2.90695,2104.1,2104.0,4.86839009]
[1617444969401,2.90695,2104.1,2103.9,4.86940148]
[1617444969702,2.90695,2104.1,2103.7,5.95136937]
[1617444969703,2.90695,2104.1,2104.0,4.86932937]
[1617444970002,2.90695,2104.1,2103.9,4.86998631]
[1617444971103,2.90695,2104.1,2103.8,4.87094998]
[1617444972503,2.90695,2104.1,2103.9,4.86640964]
[1617444973103,2.90695,2104.1,2104.0,4.86264585]
[1617444974403,2.90695,2104.1,2103.7,5.94435042]
[1617444974404,2.90695,2104.1,2103.9,4.86365679]
[1617444976407,2.90695,2104.1,2103.8,4.86525168]
[1617444977511,2.90695,2104.1,2103.7,4.86849861]
[1617444977908,2.90695,2104.1,2103.8,4.86909854]
[1617444978208,2.90695,2104.1,2103.9,4.86851517]
[1617444979709,2.90695,2104.1,2104.0,4.86691245]
[1617444982614,2.90695,2104.1,2103.8,4.86848543]
[1617444982812,4.82935,2104.1,2103.8,4.86848543]
[1617444983413,4.82935,2104.1,2103.7,4.86980619]
[1617444985121,2.90695,2103.8,2103.7,4.86980619]
[1617444988821,2.90695,2103.8,2103.5,5.95133665]
[1617444989221,2.90695,2103.8,2103.1,7.03339786]
[1617444989222,2.90695,2103.8,2103.6,5.9510007]
[1617444991429,2.90695,2103.8,2103.7,5.94950902]
[1617444992026,2.90695,2103.8,2103.4,9.24240232]
[1617444992627,2.90695,2103.8,2103.5,0.13970045]
[1617444992827,2.90695,2103.8,2103.5,7.16636627]
[1617444993328,2.90695,2103.8,2103.6,0.13970005]
[1617444993728,2.90695,2103.8,2103.6,7.1639787]
[1617444994130,2.90695,2103.8,2103.7,0.13969171]
[1617444994530,2.90695,2103.8,2103.7,7.15723417]
[1617444994932,2.90695,2103.8,2103.7,0.13969171]
[1617444995231,2.90695,2103.8,2103.6,2.90695]
[1617444995635,2.90695,2103.8,2103.7,0.13968287]
[1617444997233,2.90695,2103.8,2103.7,7.00984109]
[1617444997435,2.90695,2103.8,2103.6,7.01052388]
[1617444997632,2.90695,2103.8,2103.7,0.139693]
[1617444999636,2.90695,2103.8,2103.7,7.15401855]
[1617445001338,2.90695,2103.8,2103.7,0.139693]
[1617445004641,4.53165,2103.8,2103.7,0.139693]
[1617445005243,4.53165,2103.8,2103.6,0.13970915]
[1617445005743,4.53165,2103.8,2103.5,0.13970943]
[1617445005943,4.53165,2103.8,2103.4,7.01663789]
[1617445006345,4.53165,2103.8,2103.5,0.13971025]
[1617445007948,4.53165,2103.8,2103.7,5.93940236]
[1617445008751,4.53165,2103.8,2103.6,5.94167467]
[1617445009352,4.53165,2103.8,2103.7,5.9416985]
[1617445009752,4.53165,2103.8,2103.6,5.94222563]
[1617445010752,4.53165,2103.8,2103.5,5.94166481]
[1617445011153,4.53165,2103.8,2103.7,4.86107179]
[1617445015458,2.90695,2103.8,2103.7,4.86107179]
[1617445015658,2.90695,2103.8,2103.6,5.94030836]
[1617445016058,2.90695,2103.8,2103.7,5.93897211]
[1617445016863,2.90695,2103.8,2103.7,6.07868882]
[1617445017760,2.90695,2103.8,2103.7,0.13971671]
[1617445018059,2.90695,2103.8,2103.5,0.13970965]
[1617445019466,2.90695,2103.8,2103.6,2.90695]
[1617445020067,2.90695,2103.8,2103.7,0.13970747]
[1617445024676,2.90695,2103.8,2103.7,2.40360747]
[1617445024878,2.571,2105.1,2103.7,2.40360747]
[1617445025377,2.571,2105.1,2103.8,0.13969422]
[1617445025581,2.571,2105.1,2104.5,4.85381253]
[1617445027481,2.90695,2104.6,2104.4,5.92514125]
[1617445027981,2.90695,2104.6,2104.5,0.13969023]
[1617445029081,2.90695,2104.6,2104.4,5.92514125]
[1617445029382,2.90695,2104.6,2104.5,4.84774]
[1617445030990,2.90695,2104.6,2104.3,5.92501556]
[1617445031287,2.90695,2104.6,2104.4,5.92750427]
[1617445032388,2.90695,2104.6,2104.5,0.13968351]
[1617445032889,2.90695,2104.6,2104.5,6.06620337]
[1617445034395,2.90695,2104.6,2104.5,0.13968351]
[1617445034595,2.90695,2104.6,2104.4,5.92728307]
[1617445035096,2.90695,2104.6,2104.5,6.06775805]
[1617445035297,2.90695,2104.6,2104.5,5.92807356]
[1617445035696,2.90695,2104.6,2104.2,7.00554723]
[1617445035995,2.90695,2104.6,2104.5,0.1396804]
[1617445036398,2.90695,2104.6,2104.3,0.13967851]
[1617445036797,2.90695,2104.6,2104.3,7.14454263]
[1617445037497,2.90695,2104.6,2104.4,2.19716562]
[1617445037697,2.90695,2104.6,2104.5,6.99938374]
[1617445038098,2.90695,2104.6,2104.5,7.13904366]
[1617445038998,2.90695,2104.6,2104.5,0.13965992]
[1617445040001,2.90695,2104.6,2104.4,0.13966971]
[1617445040202,4.71825,2104.6,2104.4,0.13966971]
[1617445041305,4.71825,2104.6,2104.3,0.13967924]
[1617445041504,4.71825,2104.6,2104.1,9.91204607]
[1617445041705,4.71825,2104.6,2104.2,7.00458115]
[1617445042005,4.71825,2104.6,2104.2,7.14425604]
[1617445042205,4.71825,2104.6,2104.3,0.13967504]
[1617445043212,4.71825,2104.6,2104.2,0.13967264]
[1617445043413,4.71825,2104.6,2104.2,7.1433878]
[1617445043613,2.90695,2104.3,2104.2,7.1433878]
[1617445043815,2.90695,2104.3,2104.1,9.91172593]
[1617445044212,2.90695,2104.3,2104.2,0.13967872]
[1617445049619,2.90695,2104.3,2104.2,2.05957872]
[1617445049819,2.90695,2104.3,2104.2,10.14656998]
[1617445051119,2.90695,2104.3,2104.2,2.05957872]
[1617445053019,2.90695,2104.3,2104.2,0.13967872]
[1617445054520,2.90695,2104.3,2104.2,8.23026643]
[1617445054721,2.90695,2104.3,2104.2,9.86246643]
[1617445055725,2.90695,2104.3,2104.2,1.77187872]
[1617445058428,2.90695,2104.3,2104.2,0.13967872]
[1617445058830,2.90695,2104.3,2104.1,2.90695]
[1617445059031,2.90695,2104.3,2104.2,7.14274393]
[1617445060034,2.90695,2104.3,2104.2,0.13967153]
[1617445061435,2.90695,2104.3,2104.2,7.14330105]
[1617445061937,2.90695,2104.3,2104.2,0.13967153]
[1617445070145,2.90695,2104.3,2104.2,7.13229745]
[1617445070645,2.90695,2104.3,2104.2,0.13967153]
[1617445071145,2.90695,2104.3,2104.2,7.13231602]
[1617445072146,2.90695,2104.3,2104.2,0.13967153]
[1617445074148,2.90695,2104.3,2104.2,7.13502321]
[1617445074448,2.90695,2104.3,2104.2,0.13967153]
[1617445074747,4.62015,2104.3,2104.2,0.13967153]
[1617445077252,4.62015,2104.3,2104.2,7.13362891]
[1617445078152,4.62015,2104.3,2104.2,0.13967153]
[1617445083157,2.90695,2104.3,2104.2,0.13967153]
[1617445083457,3.84885,2104.3,2104.2,0.13967153]
[1617445083658,2.90695,2104.3,2104.2,0.13967153]
[1617445083958,2.90695,2104.3,2104.2,7.13414671]
[1617445084159,2.90695,2104.3,2104.2,0.13967153]
[1617445085861,2.90695,2104.3,2104.2,7.13728588]
[1617445086665,2.90695,2104.3,2104.2,0.13967153]
[1617445096585,2.90695,2104.3,2104.2,1.09077153]
[1617445096786,14.0,2105.4,2104.2,2.11417153]
[1617445097191,14.0,2105.4,2105.3,4.83603724]
[1617445097588,14.0,2105.4,2105.3,4.97568316]
[1617445097991,16.90695,2105.4,2105.3,0.13964592]
[1617445098189,16.90695,2105.4,2105.2,5.90866796]
[1617445098389,16.90695,2105.4,2105.3,4.83504509]
[1617445098590,16.90695,2105.4,2105.3,4.97468039]
[1617445098791,16.90695,2105.4,2105.3,0.1396353]
[1617445098992,16.90695,2105.4,2105.3,6.04603181]
[1617445099792,16.90695,2105.4,2105.3,0.1396353]
[1617445100092,13.5614,2105.4,2105.3,3.0465853]
[1617445100295,13.3206,2105.4,2105.3,3.0465853]
[1617445100694,13.248,2105.4,2105.3,10.01601428]
[1617445101096,13.248,2105.4,2105.3,3.0465853]
[1617445101596,13.248,2105.4,2105.3,11.09783881]
[1617445102896,13.248,2105.4,2105.3,3.0465853]
[1617445103296,13.1823,2105.4,2105.3,3.0465853]
[1617445103596,3.7941,2105.4,2105.3,3.0465853]
[1617445104398,11.0,2105.5,2105.3,3.0465853]
[1617445104799,9.8338,2105.5,2105.4,0.13959255]
[1617445106201,9.8338,2105.5,2105.4,8.18967492]
[1617445106904,9.8338,2105.5,2105.4,0.13959255]
[1617445109109,9.8338,2105.5,2105.3,5.89394145]
[1617445109310,12.2214,2105.5,2105.3,5.89394145]
[1617445109711,12.2214,2105.5,2105.2,5.89553313]
[1617445109913,12.2214,2105.5,2105.4,4.824188]
[1617445110914,12.2214,2105.5,2105.2,5.89553313]
[1617445111213,12.2214,2105.5,2105.3,6.03293753]
[1617445111612,12.2214,2105.5,2105.4,0.13962559]
[1617445111813,12.2214,2105.5,2105.3,5.89330872]
[1617445112012,12.2214,2105.5,2105.4,2.90695]
[1617445112212,12.2214,2105.5,2105.4,3.04657312]
[1617445113412,9.8338,2105.5,2105.4,3.04657312]
[1617445113911,9.8338,2105.5,2105.4,10.00827009]
[1617445114112,12.74075,2105.5,2105.4,3.04657312]
[1617445114313,12.74075,2105.5,2105.4,0.13962312]
[1617445115114,12.74075,2105.5,2105.2,0.13961885]
[1617445115613,12.74075,2105.5,2105.2,7.10601835]
[1617445116213,12.74075,2105.5,2105.3,0.1396216]
[1617445116913,12.74075,2105.5,2105.2,7.10650368]
[1617445117113,12.74075,2105.5,2105.4,0.13961719]
[1617445117514,12.74075,2105.5,2105.3,0.13961449]
[1617445117823,12.74075,2105.5,2105.4,0.13961405]
[1617445118019,12.74075,2105.5,2105.4,6.02960566]
[1617445118217,12.74075,2105.5,2105.4,8.79694161]
[1617445119016,12.74075,2105.5,2105.4,3.04656129]
[1617445120117,9.8338,2105.5,2105.4,3.04656129]
[1617445124127,12.74075,2105.5,2105.4,3.04656129]
[1617445125224,12.74075,2105.5,2105.4,2.90695]
[1617445125527,12.74075,2105.5,2105.4,8.79377641]
[1617445127029,12.74075,2105.5,2105.4,3.04656296]
[1617445127733,9.8338,2105.5,2105.4,3.04656296]
[1617445128938,9.8338,2105.5,2105.4,2.90695]
[1617445136446,8.9009,2105.5,2105.4,2.90695]
[1617445138151,8.9009,2105.5,2105.4,8.76525132]
[1617445138351,11.80785,2105.5,2105.4,2.90695]
[1617445139550,11.80785,2105.5,2105.4,7.70016163]
[1617445139850,11.80785,2105.5,2105.4,2.90695]
[1617445140151,11.80785,2105.5,2105.4,7.70155296]
[1617445140652,11.80785,2105.5,2105.4,2.90695]
[1617445141355,8.9009,2105.5,2105.4,8.76154131]
[1617445142050,8.9009,2105.5,2105.4,2.90695]
[1617445142452,8.9009,2105.5,2105.4,8.76129483]
[1617445143252,8.9009,2105.5,2105.4,4.91975]
[1617445143553,8.9009,2105.5,2105.4,5.05933414]
[1617445144257,8.9009,2105.5,2105.4,3.04653414]
[1617445147058,8.9009,2105.5,2105.4,9.94635146]
[1617445147459,7.9515,2105.5,2105.4,9.94635146]
[1617445148459,7.9515,2105.5,2105.4,3.04653414]
[1617445149060,7.521,2105.5,2105.4,3.04653414]
[1617445149260,6.584,2105.5,2105.4,3.04653414]
[1617445149461,6.584,2105.5,2105.4,9.94783594]
[1617445149660,6.584,2105.5,2105.4,12.36683594]
[1617445152362,6.584,2105.5,2105.4,5.46553414]
[1617445152664,6.0737,2105.5,2105.4,5.46553414]
[1617445153765,4.184,2105.5,2105.4,5.46553414]
[1617445153966,0.4422,2105.5,2105.4,5.46553414]
[1617445154166,2.571,2108.6,2105.4,5.46553414]
[1617445154366,2.571,2108.6,2107.3,2.90695]
[1617445154571,2.571,2108.6,2107.3,5.28955]
[1617445156269,2.90695,2107.4,2107.3,5.28955]
[1617445157769,2.571,2108.6,2107.3,5.28955]
[1617445158372,2.571,2108.6,2108.2,2.90695]
[1617445160375,2.90695,2108.3,2108.2,2.90695]
[1617445162877,2.90695,2108.3,2107.3,2.3826]
[1617445163078,2.90695,2108.3,2106.5,4.74358796]
[1617445163278,2.90695,2108.3,2106.4,4.74587126]
[1617445163678,2.90695,2108.3,2106.5,0.13950781]
[1617445163878,2.90695,2108.3,2106.5,2.08000781]
[1617445164079,2.90695,2108.3,2106.5,6.82416321]
[1617445164381,2.90695,2108.3,2108.2,2.90695]
[1617445169784,2.571,2109.7,2108.2,2.90695]
[1617445170587,2.571,2109.7,2108.8,2.90695]
[1617445171789,2.571,2109.7,2108.8,4.47355]
[1617445172589,16.0699,2111.0,2109.2,2.90695]
[1617445172791,12.7773,2110.9,2109.2,2.90695]
[1617445174492,2.90695,2109.3,2109.2,2.90695]
[1617445179398,2.90695,2109.3,2107.4,5.66819735]
[1617445179699,2.90695,2109.3,2107.3,0.9598]
[1617445180499,2.90695,2109.3,2109.1,2.90695]
[1617445181300,2.90695,2109.3,2107.7,2.4119]
[1617445181801,2.90695,2109.3,2107.3,0.9598]
[1617445181802,2.90695,2109.3,2106.4,0.9606]
[1617445182503,2.0,2109.4,2108.1,2.90695]
[1617445184506,2.90695,2108.2,2108.1,2.90695]
[1617445185109,2.0,2109.4,2108.1,2.90695]
[1617445185410,2.0,2109.4,2108.1,5.37205]
[1617445186608,2.0,2109.4,2108.6,2.90695]
[1617445187712,2.0,2109.4,2107.2,1.9275]
[1617445187910,3.6939,2109.4,2107.2,1.9275]
[1617445188609,3.6939,2109.4,2106.2,5.65501812]
[1617445188610,6.2649,2109.4,2108.0,2.90695]
[1617445189310,6.2649,2109.4,2105.9,4.71112457]
[1617445189711,6.2649,2109.4,2105.8,4.71275174]
[1617445189911,8.2649,2109.4,2105.8,4.71275174]
[1617445190113,8.2649,2109.4,2105.6,4.71558412]
[1617445190314,8.2649,2109.4,2105.5,4.71585193]
[1617445190511,8.2649,2109.4,2106.9,2.90695]
[1617445192613,2.90695,2107.0,2106.9,2.90695]
[1617445193313,2.90695,2107.0,2105.9,4.71827842]
[1617445193314,4.93425,2107.0,2105.9,4.71827842]
[1617445193713,4.93425,2107.0,2105.6,4.72321029]
[1617445194115,4.93425,2107.0,2105.5,4.72444576]
[1617445194514,2.90695,2106.7,2106.4,2.90695]
[1617445194717,2.0273,2107.0,2106.4,2.90695]
[1617445195917,2.0273,2107.0,2105.6,4.7229576]
[1617445196115,2.0273,2107.0,2104.5,7.87577229]
[1617445196116,2.0273,2107.0,2105.5,4.72705347]
[1617445196514,2.90695,2106.4,2106.3,2.90695]
[1617445196715,5.08515,2106.4,2106.3,2.90695]
[1617445197115,2.1782,2106.4,2106.3,2.90695]
[1617445198516,2.90695,2106.4,2106.3,2.90695]
[1617445198716,56.4785,2108.4,2106.3,2.90695]
[1617445199719,56.4785,2108.4,2106.4,0.13952467]
[1617445200119,11.0,2109.3,2106.4,0.13952467]
[1617445200523,23.0,2109.3,2106.4,0.13952467]
[1617445200719,2.90695,2107.1,2106.8,2.90695]
[1617445202021,2.90695,2107.1,2106.9,0.13953001]
[1617445202422,23.0,2109.3,2106.9,1.10053001]
[1617445202622,2.90695,2109.2,2109.1,2.90695]
[1617445202822,23.0,2109.3,2109.1,5.03735]
[1617445203424,19.2316,2109.3,2109.1,5.03735]
[1617445204024,10.2406,2109.3,2109.2,0.13937471]
[1617445204823,9.09,2109.3,2109.2,0.13937471]
[1617445205025,5.2992,2109.3,2109.2,0.13937471]
[1617445205226,2.90695,2110.5,2109.2,0.13937471]
[1617445206226,2.90695,2110.5,2109.1,2.90695]
[1617445206826,14.0445,2110.9,2109.8,2.90695]
[1617445208730,14.0445,2110.9,2110.6,2.90695]
[1617445209031,2.571,2111.0,2110.6,2.90695]
[1617445209731,16.2046,2112.6,2110.6,2.90695]
[1617445210534,16.2046,2112.6,2109.5,6.73922845]
[1617445210736,18.2046,2112.6,2110.6,2.90695]
[1617445212343,0.9519,2114.1,2110.6,5.13685]
[1617445212537,6.571,2113.0,2110.6,5.13685]
[1617445212738,6.571,2113.0,2112.9,5.01525]